[Event "*** Titled Tuesday 3|2 Blitz (Early)"]
[Site "Chess.com"]
[Date "2016.11.01"]
[Round "1"]
[White "RodinMihail"]
[Black "GeorgMeier"]
[Result "0-1"]
[WhiteElo "2416"]
[BlackElo "2707"]
[TimeControl "180+2"]
[EndTime "11:07:15 PDT"]
[Termination "GeorgMeier won by resignation"]

1. e4 {[%clk 0:03:01.1]} 1... e6 {[%clk 0:03:00.8]} 2. d4 {[%clk 0:03:01.6]}
2... d5 {[%clk 0:03:02.3]} 3. Nd2 {[%clk 0:03:03.2]} 3... dxe4 {[%clk
0:03:00.2]} 4. Nxe4 {[%clk 0:03:05.1]} 4... Nd7 {[%clk 0:03:00.5]} 5. Bd3 {[%clk
0:03:06.6]} 5... Ngf6 {[%clk 0:03:02.1]} 6. Qe2 {[%clk 0:03:08]} 6... c5 {[%clk
0:03:03.3]} 7. Nxf6+ {[%clk 0:03:07]} 7... Nxf6 {[%clk 0:03:04.4]} 8. dxc5
{[%clk 0:03:06.7]} 8... Bxc5 {[%clk 0:03:06.3]} 9. Nf3 {[%clk 0:03:08.1]} 9...
O-O {[%clk 0:03:07.4]} 10. Bg5 {[%clk 0:03:08.6]} 10... h6 {[%clk 0:03:08.8]}
11. Bd2 {[%clk 0:02:58.7]} 11... e5 {[%clk 0:03:08.4]} 12. Bc3 {[%clk
0:02:42.3]} 12... e4 {[%clk 0:02:59.7]} 13. Bxf6 {[%clk 0:02:42.2]} 13... exd3
{[%clk 0:02:59.1]} 14. Bxd8 {[%clk 0:02:42.8]} 14... dxe2 {[%clk 0:03:00.3]} 15.
Ba5 {[%clk 0:02:38.8]} 15... Re8 {[%clk 0:02:57.9]} 16. Bc3 {[%clk 0:02:30.7]}
16... Bg4 {[%clk 0:02:48.7]} 17. Nd4 {[%clk 0:02:31.3]} 17... Rad8 {[%clk
0:02:45.7]} 18. h3 {[%clk 0:02:01.3]} 18... Bh5 {[%clk 0:02:34.5]} 19. g4 {[%clk
0:01:52.3]} 19... Bg6 {[%clk 0:02:32.3]} 20. Nf5 {[%clk 0:01:50.2]} 20... f6
{[%clk 0:02:24.3]} 21. b4 {[%clk 0:01:34.8]} 21... Bb6 {[%clk 0:02:19.7]} 22. a4
{[%clk 0:01:35.7]} 22... a6 {[%clk 0:02:18.4]} 23. a5 {[%clk 0:01:35.5]} 23...
Ba7 {[%clk 0:02:15.7]} 24. Rh2 {[%clk 0:01:27.2]} 24... Bxf5 {[%clk 0:01:46.6]}
25. gxf5 {[%clk 0:01:29.1]} 25... Rd5 {[%clk 0:01:42]} 26. f3 {[%clk 0:01:15.4]}
26... Re3 {[%clk 0:01:42.6]} 27. Bd2 {[%clk 0:01:09.2]} 27... Rxf3 {[%clk
0:01:43.4]} 28. Kxe2 {[%clk 0:01:04.5]} 28... Rdxf5 {[%clk 0:01:42.1]} 29. Be1
{[%clk 0:01:01.4]} 29... Re3+ {[%clk 0:01:39.7]} 30. Kd1 {[%clk 0:00:59.8]}
30... Kf7 {[%clk 0:01:30]} 31. h4 {[%clk 0:00:52.2]} 31... Bd4 {[%clk 0:01:10]}
32. Rb1 {[%clk 0:00:42.1]} 32... Rd5 {[%clk 0:01:05.9]} 33. Rd2 {[%clk
0:00:40.9]} 33... Rxe1+ {[%clk 0:01:06.7]} 34. Kxe1 {[%clk 0:00:38.5]} 34... Bc3
{[%clk 0:01:08.3]} 35. Rd1 {[%clk 0:00:40.4]} 35... Bxb4 {[%clk 0:01:09.1]} 0-1

[Event "*** Titled Tuesday 3|2 Blitz (Early)"]
[Site "Chess.com"]
[Date "2016.11.01"]
[Round "1"]
[White "bilelou"]
[Black "psv98"]
[Result "0-1"]
[WhiteElo "2356"]
[BlackElo "2621"]
[TimeControl "180+2"]
[EndTime "11:07:51 PDT"]
[Termination "psv98 won by resignation"]

1. d4 {[%clk 0:02:59.4]} 1... Nf6 {[%clk 0:03:00.2]} 2. c4 {[%clk 0:03:00.1]}
2... e6 {[%clk 0:03:00.9]} 3. Nf3 {[%clk 0:03:00.7]} 3... b6 {[%clk 0:03:01.5]}
4. g3 {[%clk 0:03:01.5]} 4... Ba6 {[%clk 0:02:58.5]} 5. Bg2 {[%clk 0:03:03]}
5... Bxc4 {[%clk 0:02:49.4]} 6. Nc3 {[%clk 0:03:03.9]} 6... c6 {[%clk
0:02:38.2]} 7. Bg5 {[%clk 0:03:00.9]} 7... Be7 {[%clk 0:02:36.7]} 8. Rc1 {[%clk
0:03:00.6]} 8... d5 {[%clk 0:02:34.4]} 9. Ne5 {[%clk 0:02:56.6]} 9... Ba6 {[%clk
0:02:27.5]} 10. O-O {[%clk 0:02:49.6]} 10... O-O {[%clk 0:02:26.7]} 11. Re1
{[%clk 0:02:49.1]} 11... Nfd7 {[%clk 0:02:23.9]} 12. Bxe7 {[%clk 0:02:49.6]}
12... Qxe7 {[%clk 0:02:25.6]} 13. Nxd7 {[%clk 0:02:48.1]} 13... Nxd7 {[%clk
0:02:25.6]} 14. e4 {[%clk 0:02:49.2]} 14... Qb4 {[%clk 0:02:23.5]} 15. Qg4
{[%clk 0:02:41.1]} 15... Nf6 {[%clk 0:02:22.8]} 16. Qg5 {[%clk 0:02:41.8]} 16...
h6 {[%clk 0:02:22.7]} 17. Qd2 {[%clk 0:02:41.9]} 17... Rad8 {[%clk 0:02:12.5]}
18. a3 {[%clk 0:02:39.2]} 18... Qe7 {[%clk 0:02:08.7]} 19. Qd1 {[%clk
0:02:33.2]} 19... Bb7 {[%clk 0:02:00.2]} 20. Qa4 {[%clk 0:02:30.8]} 20... Ba8
{[%clk 0:01:46.9]} 21. exd5 {[%clk 0:02:24.7]} 21... Nxd5 {[%clk 0:01:46.8]} 22.
Bxd5 {[%clk 0:02:20.4]} 22... cxd5 {[%clk 0:01:48.7]} 23. Nb5 {[%clk 0:02:22]}
23... Rd7 {[%clk 0:01:48.3]} 24. Rc2 {[%clk 0:02:18.7]} 24... Rfd8 {[%clk
0:01:35.5]} 25. Rec1 {[%clk 0:02:19]} 25... e5 {[%clk 0:01:36.8]} 26. Rc7 {[%clk
0:02:03.4]} 26... exd4 {[%clk 0:01:31]} 27. Qxa7 {[%clk 0:01:52.6]} 27... Rxc7
{[%clk 0:01:13.2]} 28. Rxc7 {[%clk 0:01:25.8]} 28... Qe1+ {[%clk 0:01:12.6]} 29.
Kg2 {[%clk 0:01:26.7]} 29... Qe4+ {[%clk 0:01:04.3]} 30. Kg1 {[%clk 0:01:19.2]}
30... d3 {[%clk 0:00:56.9]} 31. Re7 {[%clk 0:01:09.7]} 31... d2 {[%clk
0:00:47.7]} 32. Nc3 {[%clk 0:01:10.8]} 32... Qf3 {[%clk 0:00:47.1]} 33. Qxb6
{[%clk 0:00:19.8]} 33... d1=Q+ {[%clk 0:00:41.9]} 34. Nxd1 {[%clk 0:00:20.2]}
34... Qxd1+ {[%clk 0:00:43.8]} 35. Kg2 {[%clk 0:00:21.2]} 35... d4+ {[%clk
0:00:44.8]} 0-1

[Event "*** Titled Tuesday 3|2 Blitz (Early)"]
[Site "Chess.com"]
[Date "2016.11.01"]
[Round "1"]
[White "joppie2"]
[Black "darsen_sanzhaev"]
[Result "1-0"]
[WhiteElo "2555"]
[BlackElo "2257"]
[TimeControl "180+2"]
[EndTime "11:07:51 PDT"]
[Termination "joppie2 won on time"]

1. e4 {[%clk 0:03:02]} 1... c5 {[%clk 0:02:42.8]} 2. Nf3 {[%clk 0:03:03.1]} 2...
Nc6 {[%clk 0:02:43.5]} 3. Bb5 {[%clk 0:03:03.3]} 3... g6 {[%clk 0:02:42.8]} 4.
Bxc6 {[%clk 0:03:03.6]} 4... bxc6 {[%clk 0:02:39]} 5. O-O {[%clk 0:03:02.7]}
5... Bg7 {[%clk 0:02:27.6]} 6. Re1 {[%clk 0:03:03.4]} 6... Nh6 {[%clk
0:02:21.5]} 7. c3 {[%clk 0:03:03.4]} 7... f6 {[%clk 0:02:16.3]} 8. d4 {[%clk
0:03:02.8]} 8... cxd4 {[%clk 0:02:12.8]} 9. cxd4 {[%clk 0:03:04.2]} 9... Nf7
{[%clk 0:02:13.2]} 10. h3 {[%clk 0:03:03.8]} 10... d6 {[%clk 0:02:04.1]} 11. Nc3
{[%clk 0:03:04.4]} 11... O-O {[%clk 0:01:54.7]} 12. b3 {[%clk 0:02:57.3]} 12...
e5 {[%clk 0:01:40.2]} 13. Bb2 {[%clk 0:02:57.3]} 13... Qb6 {[%clk 0:01:18.9]}
14. Rc1 {[%clk 0:02:55]} 14... Ba6 {[%clk 0:01:16]} 15. Ba3 {[%clk 0:02:40.8]}
15... Rfd8 {[%clk 0:01:06.9]} 16. Na4 {[%clk 0:02:38.6]} 16... Qb5 {[%clk
0:00:52.2]} 17. Nb2 {[%clk 0:02:35.3]} 17... Qa5 {[%clk 0:00:49]} 18. Nc4 {[%clk
0:02:24.8]} 18... Bxc4 {[%clk 0:00:49.5]} 19. Rxc4 {[%clk 0:02:26.7]} 19... Qxa3
{[%clk 0:00:48.1]} 20. Ra4 {[%clk 0:02:28]} 20... Qb2 {[%clk 0:00:45.9]} 21. Re2
{[%clk 0:02:29.5]} 21... Qc3 {[%clk 0:00:44.7]} 22. Rc2 {[%clk 0:02:30.6]} 22...
exd4 {[%clk 0:00:46.1]} 23. Nxd4 {[%clk 0:02:27.8]} 23... Qc5 {[%clk 0:00:40.7]}
24. Nxc6 {[%clk 0:02:24.7]} 24... Qb6 {[%clk 0:00:36]} 25. Nxd8 {[%clk
0:02:24.4]} 25... Rxd8 {[%clk 0:00:37.3]} 26. Qd5 {[%clk 0:02:24.8]} 26... Kf8
{[%clk 0:00:35.2]} 27. Rac4 {[%clk 0:02:24.9]} 27... Ne5 {[%clk 0:00:23.3]} 28.
Rc8 {[%clk 0:02:19]} 28... Ke7 {[%clk 0:00:12.9]} 29. R2c7+ {[%clk 0:02:19.1]}
29... Nd7 {[%clk 0:00:14]} 30. Rxd8 {[%clk 0:02:13.2]} 30... Kxd8 {[%clk
0:00:15]} 31. Rb7 {[%clk 0:02:15.1]} 31... Qc5 {[%clk 0:00:11.4]} 32. Qg8+
{[%clk 0:02:15.7]} 32... Bf8 {[%clk 0:00:12.1]} 33. g3 {[%clk 0:02:11.1]} 33...
Qc1+ {[%clk 0:00:11.2]} 34. Kg2 {[%clk 0:02:12.3]} 34... Qc6 {[%clk 0:00:11.8]}
35. Rb4 {[%clk 0:01:52.5]} 35... a5 {[%clk 0:00:05.1]} 36. Rc4 {[%clk
0:01:53.6]} 36... Qb7 {[%clk 0:00:05.6]} 37. Qxh7 {[%clk 0:01:55]} 37... d5
{[%clk 0:00:06.3]} 38. exd5 {[%clk 0:01:54.3]} 38... Qxd5+ {[%clk 0:00:07.6]}
39. Kh2 {[%clk 0:01:52.8]} 39... Qf5 {[%clk 0:00:05.2]} 40. Rf4 {[%clk
0:01:53.7]} 40... Qe5 {[%clk 0:00:04.5]} 41. Qxg6 {[%clk 0:01:54.4]} 41... Bc5
{[%clk 0:00:04.6]} 42. Qe4 {[%clk 0:01:54.4]} 42... Qd6 {[%clk 0:00:04.2]} 43.
h4 {[%clk 0:01:48.8]} 43... Ne5 {[%clk 0:00:04.6]} 44. h5 {[%clk 0:01:50.4]}
44... Qf8 {[%clk 0:00:02.8]} 45. Qa8+ {[%clk 0:01:50.2]} 45... Ke7 {[%clk
0:00:02.8]} 46. Qxf8+ {[%clk 0:01:50.9]} 46... Kxf8 {[%clk 0:00:04.7]} 47. Rxf6+
{[%clk 0:01:52.7]} 1-0

[Event "*** Titled Tuesday 3|2 Blitz (Early)"]
[Site "Chess.com"]
[Date "2016.11.01"]
[Round "1"]
[White "Zaven_ChessMood"]
[Black "Saitama_Hero"]
[Result "1-0"]
[WhiteElo "2516"]
[BlackElo "2108"]
[TimeControl "180+2"]
[EndTime "11:07:51 PDT"]
[Termination "Zaven_ChessMood won by resignation"]

1. e4 {[%clk 0:03:02]} 1... d6 {[%clk 0:02:59]} 2. d4 {[%clk 0:03:02.3]} 2... g6
{[%clk 0:03:00.9]} 3. Nc3 {[%clk 0:03:03.3]} 3... Bg7 {[%clk 0:03:02.8]} 4. f4
{[%clk 0:03:04.3]} 4... Nf6 {[%clk 0:03:02.3]} 5. Nf3 {[%clk 0:03:05.3]} 5...
O-O {[%clk 0:03:03.9]} 6. Bd3 {[%clk 0:03:06]} 6... Na6 {[%clk 0:03:05.5]} 7.
O-O {[%clk 0:03:05.8]} 7... c5 {[%clk 0:03:07]} 8. d5 {[%clk 0:03:04.1]} 8...
Bg4 {[%clk 0:03:08.6]} 9. a3 {[%clk 0:02:59.3]} 9... Rb8 {[%clk 0:03:09.7]} 10.
h3 {[%clk 0:02:52.8]} 10... Bxf3 {[%clk 0:03:09.5]} 11. Qxf3 {[%clk 0:02:53.9]}
11... Nd7 {[%clk 0:03:10.4]} 12. Be3 {[%clk 0:02:49.1]} 12... Nc7 {[%clk
0:02:51.3]} 13. a4 {[%clk 0:02:49.6]} 13... Na6 {[%clk 0:02:51.6]} 14. Rae1
{[%clk 0:02:45.1]} 14... Nb4 {[%clk 0:02:50.8]} 15. Kh1 {[%clk 0:02:44.2]} 15...
c4 {[%clk 0:02:50.5]} 16. Bxc4 {[%clk 0:02:40.6]} 16... Nxc2 {[%clk 0:02:52]}
17. Re2 {[%clk 0:02:40]} 17... Nxe3 {[%clk 0:02:53.5]} 18. Rxe3 {[%clk
0:02:39.1]} 18... Qb6 {[%clk 0:02:46.8]} 19. b3 {[%clk 0:02:35.5]} 19... Rbc8
{[%clk 0:02:42]} 20. Qg3 {[%clk 0:02:09.4]} 20... Nc5 {[%clk 0:02:41.9]} 21. e5
{[%clk 0:02:05.7]} 21... Nxb3 {[%clk 0:02:37.3]} 22. Bxb3 {[%clk 0:02:02.7]}
22... Qxb3 {[%clk 0:02:37.1]} 23. Rb1 {[%clk 0:02:01.3]} 23... Qc2 {[%clk
0:02:26.7]} 24. Rxb7 {[%clk 0:01:46.1]} 24... dxe5 {[%clk 0:02:17.8]} 25. fxe5
{[%clk 0:01:44.4]} 25... e6 {[%clk 0:01:42.3]} 26. d6 {[%clk 0:01:38.1]} 26...
Qc1+ {[%clk 0:01:27.8]} 27. Kh2 {[%clk 0:01:36]} 27... Bh6 {[%clk 0:01:29.7]}
28. Rf3 {[%clk 0:01:33.5]} 28... Rc4 {[%clk 0:01:27.8]} 29. Rc7 {[%clk
0:01:25.5]} 29... Rf4 {[%clk 0:01:20.6]} 30. Ne2 {[%clk 0:01:21.5]} 30... Rxf3
{[%clk 0:01:20.8]} 31. Nxc1 {[%clk 0:01:17.2]} 31... Rxg3 {[%clk 0:01:20.4]} 32.
Kxg3 {[%clk 0:01:18.5]} 32... Be3 {[%clk 0:00:52.7]} 33. Nd3 {[%clk 0:01:17.1]}
33... Bb6 {[%clk 0:00:51]} 34. Rc6 {[%clk 0:01:13.7]} 34... f6 {[%clk 0:00:46]}
35. exf6 {[%clk 0:01:11.6]} 35... Kf7 {[%clk 0:00:46.4]} 36. Ne5+ {[%clk
0:01:11.9]} 36... Kg8 {[%clk 0:00:43.7]} 37. f7+ {[%clk 0:01:09.1]} 37... Kg7
{[%clk 0:00:44.1]} 38. d7 {[%clk 0:01:07.2]} 38... Kf6 {[%clk 0:00:41.3]} 39.
Rc8 {[%clk 0:01:04.2]} 39... Bd8 {[%clk 0:00:33.8]} 40. Nc6 {[%clk 0:01:00.4]}
40... Be7 {[%clk 0:00:33.7]} 41. Nxe7 {[%clk 0:01:00.6]} 1-0

[Event "*** Titled Tuesday 3|2 Blitz (Early)"]
[Site "Chess.com"]
[Date "2016.11.01"]
[Round "1"]
[White "Haridaskesavan"]
[Black "fastestmindalive"]
[Result "0-1"]
[WhiteElo "2110"]
[BlackElo "2502"]
[TimeControl "180+2"]
[EndTime "11:07:54 PDT"]
[Termination "fastestmindalive won by resignation"]

1. e4 {[%clk 0:02:47.2]} 1... c5 {[%clk 0:02:50.1]} 2. c3 {[%clk 0:02:47.7]}
2... g6 {[%clk 0:02:49.5]} 3. d4 {[%clk 0:02:48.4]} 3... cxd4 {[%clk 0:02:51.4]}
4. cxd4 {[%clk 0:02:49.3]} 4... d5 {[%clk 0:02:52.5]} 5. exd5 {[%clk 0:02:49.6]}
5... Nf6 {[%clk 0:02:52.8]} 6. Bb5+ {[%clk 0:02:51]} 6... Nbd7 {[%clk
0:02:46.9]} 7. Nc3 {[%clk 0:02:51.2]} 7... Bg7 {[%clk 0:02:48.5]} 8. Nf3 {[%clk
0:02:52.3]} 8... O-O {[%clk 0:02:49.9]} 9. Ba4 {[%clk 0:02:53]} 9... Nb6 {[%clk
0:02:51]} 10. Bb3 {[%clk 0:02:53.8]} 10... Nfxd5 {[%clk 0:02:29]} 11. O-O {[%clk
0:02:53.8]} 11... Bf5 {[%clk 0:02:17.2]} 12. Ne5 {[%clk 0:02:47.9]} 12... Rc8
{[%clk 0:02:12.5]} 13. Bd2 {[%clk 0:02:48.3]} 13... a6 {[%clk 0:02:05.1]} 14.
Rc1 {[%clk 0:02:45.9]} 14... Qd6 {[%clk 0:02:05.2]} 15. Qf3 {[%clk 0:02:42.3]}
15... Be6 {[%clk 0:02:01.2]} 16. Rcd1 {[%clk 0:02:12.6]} 16... Nxc3 {[%clk
0:01:57.7]} 17. bxc3 {[%clk 0:02:12.6]} 17... Nd5 {[%clk 0:01:42.4]} 18. c4
{[%clk 0:02:07.5]} 18... Nf6 {[%clk 0:01:42.8]} 19. Bf4 {[%clk 0:02:02.5]} 19...
Qb4 {[%clk 0:01:42]} 20. d5 {[%clk 0:01:57.4]} 20... Bf5 {[%clk 0:01:42]} 21.
Rfe1 {[%clk 0:01:47.2]} 21... a5 {[%clk 0:01:39.9]} 22. g4 {[%clk 0:01:44.3]}
22... Bd7 {[%clk 0:01:20.1]} 23. g5 {[%clk 0:01:38.4]} 23... Bf5 {[%clk
0:00:47.5]} 24. gxf6 {[%clk 0:01:31.8]} 24... Bxf6 {[%clk 0:00:49.4]} 25. Ng4
{[%clk 0:01:18.4]} 25... Bxg4 {[%clk 0:00:48.5]} 26. Qxg4 {[%clk 0:01:18.1]}
26... a4 {[%clk 0:00:49.5]} 27. Bc2 {[%clk 0:01:11.6]} 27... Rxc4 {[%clk
0:00:49.5]} 28. Qe2 {[%clk 0:00:33.1]} 28... Rxf4 {[%clk 0:00:45.6]} 29. Be4
{[%clk 0:00:27.7]} 29... Bc3 {[%clk 0:00:43.7]} 30. Rb1 {[%clk 0:00:25.3]} 30...
Qd4 {[%clk 0:00:42.5]} 31. d6 {[%clk 0:00:18.6]} 31... exd6 {[%clk 0:00:41.2]}
32. Rbd1 {[%clk 0:00:12.5]} 32... Qe5 {[%clk 0:00:41.9]} 33. f3 {[%clk
0:00:12.4]} 33... Bxe1 {[%clk 0:00:42.4]} 0-1

[Event "*** Titled Tuesday 3|2 Blitz (Early)"]
[Site "Chess.com"]
[Date "2016.11.01"]
[Round "1"]
[White "swayamsm"]
[Black "ulises2013"]
[Result "1-0"]
[WhiteElo "2597"]
[BlackElo "2273"]
[TimeControl "180+2"]
[EndTime "11:07:57 PDT"]
[Termination "swayamsm won by resignation"]

1. d4 {[%clk 0:02:52.9]} 1... Nf6 {[%clk 0:02:49.7]} 2. c4 {[%clk 0:02:26.5]}
2... Nc6 {[%clk 0:02:47.9]} 3. Nc3 {[%clk 0:02:28.4]} 3... e5 {[%clk 0:02:47.9]}
4. d5 {[%clk 0:02:27]} 4... Ne7 {[%clk 0:02:48.2]} 5. g3 {[%clk 0:02:24.6]} 5...
Ng6 {[%clk 0:02:48.3]} 6. Bg2 {[%clk 0:02:26.4]} 6... a6 {[%clk 0:02:48.5]} 7.
e3 {[%clk 0:02:25.3]} 7... Bb4 {[%clk 0:02:46.9]} 8. Ne2 {[%clk 0:02:27]} 8...
d6 {[%clk 0:02:46.7]} 9. Qa4+ {[%clk 0:02:27.4]} 9... Bd7 {[%clk 0:02:37.7]} 10.
Qxb4 {[%clk 0:02:27.7]} 10... O-O {[%clk 0:02:39.1]} 11. O-O {[%clk 0:02:24.1]}
11... Re8 {[%clk 0:02:40.4]} 12. Qb3 {[%clk 0:02:17.5]} 12... e4 {[%clk
0:02:38.7]} 13. Qc2 {[%clk 0:02:13.5]} 13... Re5 {[%clk 0:02:27.6]} 14. Nxe4
{[%clk 0:02:10.2]} 14... Bf5 {[%clk 0:02:23.2]} 15. Nxf6+ {[%clk 0:02:07.7]}
15... Qxf6 {[%clk 0:02:25.1]} 16. Qc3 {[%clk 0:02:08.2]} 16... Qd8 {[%clk
0:01:44.5]} 17. Nf4 {[%clk 0:01:59.9]} 17... Qd7 {[%clk 0:01:39.2]} 18. Nxg6
{[%clk 0:01:59.6]} 18... hxg6 {[%clk 0:01:41.1]} 19. b3 {[%clk 0:01:54.6]} 19...
Bh3 {[%clk 0:01:36.6]} 20. Bb2 {[%clk 0:01:55.2]} 20... f6 {[%clk 0:01:35.7]}
21. Qc2 {[%clk 0:01:45.7]} 21... Bxg2 {[%clk 0:01:10.9]} 22. Kxg2 {[%clk
0:01:47.6]} 22... Rh5 {[%clk 0:01:11.4]} 23. h4 {[%clk 0:01:47.7]} 23... g5
{[%clk 0:01:12.4]} 24. Qe2 {[%clk 0:01:43.7]} 24... Rh6 {[%clk 0:01:02.5]} 25.
Rh1 {[%clk 0:01:44.9]} 25... g4 {[%clk 0:00:53.5]} 26. Rad1 {[%clk 0:01:40.1]}
26... Kf7 {[%clk 0:00:54.6]} 27. Rd4 {[%clk 0:01:40.2]} 27... f5 {[%clk
0:00:53.2]} 28. e4 {[%clk 0:01:41.1]} 28... c5 {[%clk 0:00:37.5]} 29. dxc6
{[%clk 0:01:34.6]} 29... Qxc6 {[%clk 0:00:34.5]} 30. Rd5 {[%clk 0:01:35.1]}
30... Kg8 {[%clk 0:00:05.7]} 31. exf5 {[%clk 0:01:15.8]} 31... Re8 {[%clk
0:00:07.6]} 32. Qxg4 {[%clk 0:01:16.3]} 32... Re7 {[%clk 0:00:07.7]} 33. f6
{[%clk 0:01:16]} 33... Rf7 {[%clk 0:00:09]} 34. fxg7 {[%clk 0:01:16.5]} 34... b5
{[%clk 0:00:08.8]} 35. Rd1 {[%clk 0:01:13.8]} 35... bxc4 {[%clk 0:00:09.9]} 36.
Qxc4 {[%clk 0:01:15.5]} 36... Qb6 {[%clk 0:00:10.6]} 37. Qc8+ {[%clk 0:01:15.2]}
1-0

[Event "*** Titled Tuesday 3|2 Blitz (Early)"]
[Site "Chess.com"]
[Date "2016.11.01"]
[Round "1"]
[White "Blitzstream"]
[Black "popov_m"]
[Result "1-0"]
[WhiteElo "2544"]
[BlackElo "2238"]
[TimeControl "180+2"]
[EndTime "11:08:07 PDT"]
[Termination "Blitzstream won by resignation"]

1. d4 {[%clk 0:02:59.9]} 1... Nf6 {[%clk 0:03:00.9]} 2. Bg5 {[%clk 0:03:00.6]}
2... Ne4 {[%clk 0:02:56.4]} 3. Bh4 {[%clk 0:03:01.5]} 3... c5 {[%clk 0:02:55.3]}
4. f3 {[%clk 0:03:02.7]} 4... Nd6 {[%clk 0:02:36.3]} 5. dxc5 {[%clk 0:03:01.8]}
5... Qa5+ {[%clk 0:02:37.4]} 6. c3 {[%clk 0:03:02.9]} 6... Qxc5 {[%clk
0:02:38.9]} 7. e4 {[%clk 0:03:04]} 7... g6 {[%clk 0:02:36.7]} 8. Bf2 {[%clk
0:03:02.4]} 8... Qa5 {[%clk 0:02:36.4]} 9. Bd3 {[%clk 0:02:41.3]} 9... Bg7
{[%clk 0:02:36.1]} 10. Ne2 {[%clk 0:02:42.3]} 10... Nc6 {[%clk 0:02:30.6]} 11.
O-O {[%clk 0:02:40.9]} 11... O-O {[%clk 0:02:30.2]} 12. Nd2 {[%clk 0:02:41]}
12... f5 {[%clk 0:02:04]} 13. Nc4 {[%clk 0:02:30.8]} 13... Nxc4 {[%clk
0:02:00.2]} 14. Bxc4+ {[%clk 0:02:32.7]} 14... Kh8 {[%clk 0:01:55]} 15. exf5
{[%clk 0:02:31.7]} 15... Qxf5 {[%clk 0:01:54.4]} 16. Ng3 {[%clk 0:02:22.6]}
16... Qa5 {[%clk 0:01:40.4]} 17. Ne4 {[%clk 0:02:13.9]} 17... d6 {[%clk
0:01:39.1]} 18. Qd2 {[%clk 0:02:06.6]} 18... Ne5 {[%clk 0:01:31.4]} 19. Bb3
{[%clk 0:02:05.1]} 19... Rxf3 {[%clk 0:01:08.6]} 20. Ng5 {[%clk 0:01:32.4]}
20... Rf5 {[%clk 0:01:08.4]} 21. Bd4 {[%clk 0:01:30.1]} 21... Bd7 {[%clk
0:00:35.6]} 22. Rxf5 {[%clk 0:01:23.8]} 22... Bxf5 {[%clk 0:00:31.1]} 23. Bxe5
{[%clk 0:01:24.5]} 23... Bxe5 {[%clk 0:00:32.7]} 24. Nf7+ {[%clk 0:01:25.5]}
24... Kg7 {[%clk 0:00:34.1]} 25. Qh6+ {[%clk 0:01:26]} 25... Kf6 {[%clk
0:00:35.5]} 26. Qg5+ {[%clk 0:01:18.7]} 26... Kg7 {[%clk 0:00:36.4]} 27. Rf1
{[%clk 0:00:21.6]} 27... Qc5+ {[%clk 0:00:20.1]} 28. Kh1 {[%clk 0:00:22.5]}
28... h5 {[%clk 0:00:14]} 29. Rxf5 {[%clk 0:00:15.6]} 29... Bf6 {[%clk 0:00:09]}
30. Qh6+ {[%clk 0:00:13.4]} 1-0

[Event "*** Titled Tuesday 3|2 Blitz (Early)"]
[Site "Chess.com"]
[Date "2016.11.01"]
[Round "1"]
[White "Anton_Demchenko"]
[Black "Drags95"]
[Result "0-1"]
[WhiteElo "2630"]
[BlackElo "2419"]
[TimeControl "180+2"]
[EndTime "11:08:26 PDT"]
[Termination "Drags95 won by resignation"]

1. e4 {[%clk 0:03:01.9]} 1... c5 {[%clk 0:02:57.7]} 2. Nf3 {[%clk 0:03:01.7]}
2... d6 {[%clk 0:02:59.1]} 3. d4 {[%clk 0:03:02.5]} 3... cxd4 {[%clk 0:03:01]}
4. Nxd4 {[%clk 0:03:04.4]} 4... Nf6 {[%clk 0:03:02.6]} 5. Nc3 {[%clk 0:03:05.6]}
5... a6 {[%clk 0:03:04.1]} 6. f3 {[%clk 0:03:06.3]} 6... e5 {[%clk 0:03:04.2]}
7. Nb3 {[%clk 0:03:07.1]} 7... Be7 {[%clk 0:03:05.8]} 8. Be3 {[%clk 0:03:08.2]}
8... O-O {[%clk 0:03:07.4]} 9. Qd2 {[%clk 0:03:08.8]} 9... Be6 {[%clk
0:03:09.1]} 10. O-O-O {[%clk 0:03:09.2]} 10... a5 {[%clk 0:03:10.8]} 11. a4
{[%clk 0:03:09.7]} 11... Nc6 {[%clk 0:03:11.2]} 12. g4 {[%clk 0:03:07.1]} 12...
Nb4 {[%clk 0:03:11.6]} 13. g5 {[%clk 0:03:08]} 13... Nh5 {[%clk 0:03:08.7]} 14.
Rg1 {[%clk 0:03:09.2]} 14... Rc8 {[%clk 0:02:41]} 15. Kb1 {[%clk 0:03:09.7]}
15... g6 {[%clk 0:02:39.7]} 16. Bb5 {[%clk 0:02:59.3]} 16... Qc7 {[%clk
0:02:39.7]} 17. Qf2 {[%clk 0:02:56.3]} 17... Nf4 {[%clk 0:02:22]} 18. Bxf4
{[%clk 0:02:23.7]} 18... exf4 {[%clk 0:02:23.9]} 19. Nd4 {[%clk 0:02:24.9]}
19... Qc5 {[%clk 0:02:02.9]} 20. h4 {[%clk 0:02:18.9]} 20... Rfd8 {[%clk
0:01:50]} 21. Qd2 {[%clk 0:02:17.2]} 21... Qe5 {[%clk 0:01:45.1]} 22. Rge1
{[%clk 0:01:51.7]} 22... Bf8 {[%clk 0:01:44.5]} 23. Nde2 {[%clk 0:01:52.6]}
23... Bg7 {[%clk 0:01:40.6]} 24. Qxf4 {[%clk 0:01:36.7]} 24... Ba2+ {[%clk
0:01:34.5]} 25. Kc1 {[%clk 0:01:34.1]} 25... Qxf4+ {[%clk 0:01:29.9]} 26. Nxf4
{[%clk 0:01:34.6]} 26... Bxc3 {[%clk 0:01:31.5]} 27. bxc3 {[%clk 0:01:36.1]}
27... Rxc3 {[%clk 0:01:33.3]} 28. Bd3 {[%clk 0:01:02.2]} 28... Rdc8 {[%clk
0:01:34.3]} 29. Kb2 {[%clk 0:00:44.4]} 29... Nxd3+ {[%clk 0:01:28.3]} 30. cxd3
{[%clk 0:00:40.8]} 30... Rc2+ {[%clk 0:01:29.7]} 31. Ka1 {[%clk 0:00:42.3]}
31... Bb3 {[%clk 0:01:31.4]} 32. Nd5 {[%clk 0:00:36.7]} 32... Ra2+ {[%clk
0:01:29.6]} 33. Kb1 {[%clk 0:00:37.5]} 33... Rcc2 {[%clk 0:01:31.2]} 34. Ne3
{[%clk 0:00:22]} 34... Rcb2+ {[%clk 0:01:29.1]} 35. Kc1 {[%clk 0:00:23.3]} 35...
Bxd1 {[%clk 0:01:28.8]} 36. Rxd1 {[%clk 0:00:24.6]} 36... Re2 {[%clk 0:01:28.7]}
37. Kb1 {[%clk 0:00:24.5]} 37... Rab2+ {[%clk 0:01:26.7]} 38. Kc1 {[%clk
0:00:24.9]} 38... Ra2 {[%clk 0:01:27.7]} 39. Kb1 {[%clk 0:00:25.7]} 39... Rxa4
{[%clk 0:01:29.1]} 40. Nd5 {[%clk 0:00:25.8]} 40... Raa2 {[%clk 0:01:27]} 41. f4
{[%clk 0:00:16.4]} 41... a4 {[%clk 0:01:28.3]} 42. Nc3 {[%clk 0:00:07.2]} 42...
Reb2+ {[%clk 0:01:27]} 43. Kc1 {[%clk 0:00:08.4]} 43... Rc2+ {[%clk 0:01:28.8]}
44. Kb1 {[%clk 0:00:09.6]} 44... Rab2+ {[%clk 0:01:30.5]} 45. Ka1 {[%clk
0:00:10.9]} 45... a3 {[%clk 0:01:32.1]} 46. Na4 {[%clk 0:00:06.5]} 46... Rb4
{[%clk 0:01:31.8]} 47. Rb1 {[%clk 0:00:05.6]} 47... Rxa4 {[%clk 0:01:30.1]} 48.
Rxb7 {[%clk 0:00:06.4]} 0-1